Body,Body Name,Service Label,Service Code,Expenditure Category,Expenditure Code,Narrative,Date,Transaction Number,Amount,Capital/Revenue/Precept,Supplier Name,Supplier Code,
32UB,Boston Borough Council,Community Champions: La Fund,1019,Language Line,3908,15.06.21 & 16.06.21 CULTURAL WORKSHOP,01/10/2021,227082,390.00,Revenue,Pab Languages Centre,11529,
32UB,Boston Borough Council,Community Champions: La Fund,1019,Language Line,3908,22.06.21/30.06.21 WEBINAR DELIVERY,01/10/2021,227614,390.00,Revenue,Pab Languages Centre,11529,
32UB,Boston Borough Council,Building Mtc-Public Buildings,4402,Materials,3006,WORKS ON HR OFFICE 2ND FLOOR,22/10/2021,228317,1365.33,Revenue,D & M Barthorpe,210,
32UB,Boston Borough Council,Vehicle Holding Account,2206,Miscellaneous,3905,STEAM CLEANING VEHICLES JULY 2021,15/10/2021,228483,1833.33,Revenue,Peter Smith Commercials Ltd,11923,
32UB,Boston Borough Council,Street Cleansing Service,3235,Specialist Services,4602,COLLECTION OF SHARPS WASTE 1100LTR BIN 08/21,01/10/2021,228612,500.00,Revenue,Healthguard Ltd,3406,
32UB,Boston Borough Council,Levelling-Up Fund,1020,Professional Services,3301,OLDRIDS - VALUATION ADVICE,15/10/2021,228630,3000.00,Revenue,Banks Long,15878,
32UB,Boston Borough Council,Grants General,3455,Voluntary Org Grants,3602,Q2 2021/22 CORE GRANT,15/10/2021,228647,7750.00,Revenue,Lincolnshire Cvs,12071,
32UB,Boston Borough Council,Community Champions: La Fund,1019,Language Line,3908,BASIC CULTURAL AWARENESS WORKSHOPS,01/10/2021,228656,390.00,Revenue,Pab Languages Centre,11529,
32UB,Boston Borough Council,Computer Costs,1503,Software Services,3426,BACKUP SERVER LICENCE INCREASE,08/10/2021,228786,520.46,Revenue,Specialist Computer Centres Plc,471,
32UB,Boston Borough Council,Parking,3449,Materials,3006,2000 PARKING PERMITS,01/10/2021,229060,525.00,Revenue,Parking & Secure Documents,14203,
32UB,Boston Borough Council,Vehicle Holding Account,2206,Materials,3006,REPLACEMENT OF WINDSCREEN TO H4 BBC,15/10/2021,229155,410.00,Revenue,Boston Windscreens,425,
32UB,Boston Borough Council,Legal Services,1402,Shared Services,3323,LEGAL FEES JULY 21,08/10/2021,229199,3292.86,Revenue,Lincolnshire County Council,12322,
32UB,Boston Borough Council,Vehicle Holding Account,2206,Sfs Payg,3043,A SERVICE AND REPAIRS (REPLACE REAR MARKERS A,01/10/2021,229209,812.25,Revenue,Specialist Fleet Services Ltd,16163,
32UB,Boston Borough Council,Vehicle Holding Account,2206,Sfs Payg,3043,VK70 XZV REPLACE FRONT BUMPER CORNER,01/10/2021,229211,254.93,Revenue,Specialist Fleet Services Ltd,16163,
32UB,Boston Borough Council,Building Mtc-Public Buildings,4402,Materials,3006,BOSTON CEMETERY FLOOD PUMP WORKS,29/10/2021,229282,2028.52,Revenue,D & M Barthorpe,210,
32UB,Boston Borough Council,Building Mtc-Public Buildings,4402,Materials,3006,VERTICAL BLINDS FITTING,29/10/2021,229284,733.33,Revenue,Fbf Products,13877,
32UB,Boston Borough Council,Vehicle Holding Account,2206,Red Diesel,2214,GASOIL,01/10/2021,229390,322.50,Revenue,Pace Fuelcare,4927,
32UB,Boston Borough Council,Vehicle Holding Account,2206,Red Diesel,2214,"2,500 LITRES RED DIESEL",01/10/2021,229390,1125.00,Revenue,Pace Fuelcare,4927,
32UB,Boston Borough Council,Vehicle Holding Account,2206,Sfs Payg,3043,FV55 ERY - BACK DOOR NOT OPENING,01/10/2021,229406,304.16,Revenue,Specialist Fleet Services Ltd,16163,
32UB,Boston Borough Council,Vehicle Holding Account,2206,Sfs Payg,3043,INSPECTION/FULL SET OF BRAKES/BEACONS  YR16 ,01/10/2021,229408,386.76,Revenue,Specialist Fleet Services Ltd,16163,
32UB,Boston Borough Council,Recycling,3238,Subscriptions,3600,PUBLIC SERVICE MEMBERSHIP,01/10/2021,229409,825.00,Revenue,Logistics Uk,13464,
32UB,Boston Borough Council,Vehicle Holding Account,2206,Sfs Payg,3043,VU62 HVH - COMPACTOR FAULT,08/10/2021,229427,487.50,Revenue,Specialist Fleet Services Ltd,16163,
32UB,Boston Borough Council,Street Cleansing Service,3235,Specialist Services,4602,COLLECTION OF SHARPS WASTE 1100LTR BIN 09/21,01/10/2021,229436,500.00,Revenue,Healthguard Ltd,3406,
32UB,Boston Borough Council,Disabled Facilities Grants,6401,Payments To Contractors,8002,DEEP CLEAN - 12 HOURS,01/10/2021,229439,648.00,Capital,Age Uk,11208,
32UB,Boston Borough Council,Central Purchasing,1010,Corporate Publications,3202,GMLC DIRECT DEBIT AGREEMENT PADS ,01/10/2021,229519,312.00,Revenue,Chris Cook Print And Office Supplies,22,
32UB,Boston Borough Council,Dog Collection,3219,Kennelling And Vet Fees,3909,FEB TO AUGUST 2021 KENNELING FEES,22/10/2021,229521,482.00,Revenue,Rookery Kennels,10593,
32UB,Boston Borough Council,Building Mtc-Public Buildings,4402,Materials,3006,RAILINGS REPLACED IN CENTRAL PARK,08/10/2021,229523,614.00,Revenue,Frank Clayton And Son Ltd,200,
32UB,Boston Borough Council,Building Mtc-Public Buildings,4402,Materials,3006,GLASS SUPPLIED CENTRAL PARK HUT,01/10/2021,229546,1306.93,Revenue,Boston Trade Frames Ltd,14541,
32UB,Boston Borough Council,Municipal Buildings,2404,Agency Staff,1032,DWP SECURITY SERVICES AUGUST 21,01/10/2021,229550,6422.58,Revenue,National Westminister Bank Plc,13781,
32UB,Boston Borough Council,Legal Services,1402,Shared Services,3323,PROFESSIONAL FEES-SUBSIDY ADVICE,15/10/2021,229551,782.00,Revenue,Freeths Llp,5650,
32UB,Boston Borough Council,"Food, Health & Safety Enforce",3220,Laboratory Charges,3912,JULY-SEPT 21 SHELLFISH TESTING,08/10/2021,229557,764.04,Revenue,Public Health England,6486,
32UB,Boston Borough Council,Development Management,3306,Agency Staff,1032,BBC/ELDC TOWN PLANNING CONSULTANCY AUG 2021,01/10/2021,229559,3496.00,Revenue,Gd Planning,16774,
32UB,Boston Borough Council,Economic Development,3423,Hospitality,3100,UK FPN LUNCH TICKETS NOV 21,08/10/2021,229569,300.00,Revenue,Lincolnshire Chamber Of Commerce,2540,
32UB,Boston Borough Council,Community Champions: La Fund,1019,Language Line,3908,TRANSLATION COSTS FOR PROJECT,01/10/2021,229591,300.00,Revenue,Pab Languages Centre,11529,
32UB,Boston Borough Council,Community Champions: La Fund,1019,Language Line,3908,6 TRANSLATIONS,01/10/2021,229591,3510.00,Revenue,Pab Languages Centre,11529,
32UB,Boston Borough Council,Street Cleansing Service,3235,La Support,3041,FIXED PENALTY NOTICES JULY 21,01/10/2021,229594,5795.00,Revenue,La Support Limited,14578,
32UB,Boston Borough Council,Street Cleansing Service,3235,La Support,3041,FIXED PENALTY NOTICES JUNE 21,01/10/2021,229595,4607.50,Revenue,La Support Limited,14578,
32UB,Boston Borough Council,Development Management,3306,Agency Staff,1032,DM SERVICES AUGUST 21,01/10/2021,229596,4387.50,Revenue,Capita Property & Infrastructure Ltd,13782,
32UB,Boston Borough Council,Leisure Pool Services,3434,Water Rates,2050,27.07.21-26.08.21 ROWLEY ROAD,01/10/2021,229663,848.71,Revenue,Wave,13339,
32UB,Boston Borough Council,Registration Of Electors,3109,Printing And Stationery,3201,CCA SCHEDULED MAILING LN4,15/10/2021,229664,1503.67,Revenue,Civica Election Services Ltd,6513,
32UB,Boston Borough Council,Registration Of Electors,3109,Printing And Stationery,3201,CF SCHEDULED MAILING LN5,15/10/2021,229665,1303.65,Revenue,Civica Election Services Ltd,6513,
32UB,Boston Borough Council,Bereavement,2401,Chapel Media Fees,3891,ONSITE ENGINEER TO INVESTIGATE ISSUES,08/10/2021,229666,582.00,Revenue,The Yaboo Co Ltd (Wesley Media),6678,
32UB,Boston Borough Council,Refuse Collection,3234,Agency Staff,1032,AGENCY W/E 19.09.21,01/10/2021,229669,8041.67,Revenue,Comensura Ltd,9671,
32UB,Boston Borough Council,Grounds Maintenance,4401,Agency Staff,1032,AGENCY W/E 19.09.21,01/10/2021,229669,448.05,Revenue,Comensura Ltd,9671,
32UB,Boston Borough Council,Community Champions: La Fund,1019,Project Costs,3935,TIK TOK CAMPAIGN TARGETTING UNDER 20'S,01/10/2021,229671,3000.00,Revenue,Can Digital Solutions Ltd,16994,
32UB,Boston Borough Council,Office Cleaning,3203,Agency Staff,1032,CLEANERS X3,01/10/2021,229672,839.30,Revenue,Workforce (Boston) Limited,11042,
32UB,Boston Borough Council,Princess Royal Sports Arena,3452,Plant Maintenance,2012,SUPPLY/FIT NEW FAN PRSA,01/10/2021,229700,802.00,Revenue,Glen Farrow Uk Ltd,12204,
32UB,Boston Borough Council,Non Distributed Costs,3502,Superann Pension Incrs Act,1007,PENSION ADDED YEARS SEPT 2021,01/10/2021,229703,5694.37,Revenue,Lincolnshire County Council Pension Fund,220,
32UB,Boston Borough Council,Building Mtc-Public Buildings,4402,Materials,3006,MICROCOIN SP READERS,15/10/2021,229705,292.00,Revenue,Electric Meter Sales Ltd,17059,
32UB,Boston Borough Council,Building Mtc-Public Buildings,4402,Materials,3006,CARRYOUT WORKS PER QUOTATION,01/10/2021,229706,4495.00,Revenue,Vere Bros,219,
32UB,Boston Borough Council,Building Mtc-Public Buildings,4402,Materials,3006,CARRYOUT WORKS PER QUOTATION,01/10/2021,229707,4960.00,Revenue,Vere Bros,219,
32UB,Boston Borough Council,Computer Costs,1503,Hardware Maintenance,3410,ARUBA SUPPORT RENEWAL - Q4233 - BOSTON,08/10/2021,229712,774.00,Revenue,Infrasys Ltd,11681,
32UB,Boston Borough Council,Covid 19,3246,Miscellaneous,3905,RENT 10.09.21-16.09.21,01/10/2021,229713,2940.00,Revenue,The New England Hotel,15731,
32UB,Boston Borough Council,Covid 19,3246,Miscellaneous,3905,SECURITY 10.09.21-16.09.21,01/10/2021,229714,1176.00,Revenue,The New England Hotel,15731,
32UB,Boston Borough Council,Covid 19,3246,Miscellaneous,3905,SECURITY 17.09.21-23.09.21,01/10/2021,229715,1176.00,Revenue,The New England Hotel,15731,
32UB,Boston Borough Council,Covid 19,3246,Miscellaneous,3905,RENT 17.09.21-23.09.21,01/10/2021,229716,2940.00,Revenue,The New England Hotel,15731,
32UB,Boston Borough Council,Vehicle Holding Account,2206,Materials,3006,HIRE VO12 YTS 15.07.21-08.09.21 6 DAYS,15/10/2021,229728,1020.00,Revenue,Euro Municipal Ltd,13250,
32UB,Boston Borough Council,Vehicle Holding Account,2206,Chris Sellars Payg,3045,TRAILED GANG MOWER FLEET NO. VF07 ,22/10/2021,229729,509.66,Revenue,Chris Sellars Groundcare Ltd,6627,
32UB,Boston Borough Council,Tree Management Service,3430,Specialist Services,4602,TO PRUNE 4 TREES ON THE OPEN SPACE ,01/10/2021,229730,350.00,Revenue,D W Landscape Services,637,
32UB,Boston Borough Council,Leisure Pool Services,3434,Plant Maintenance,2012,REPLACE GAR SYSTEM ON FUEL STORE NEW DES,01/10/2021,229732,8815.01,Revenue,Nerg,13707,
32UB,Boston Borough Council,Central Training & Recruitment,2001,Training Courses,1108,EXERCISE ON REFERRAL,08/10/2021,229734,300.00,Revenue,One You Lincolnshire C/O Thrive Tribe,14563,
32UB,Boston Borough Council,Office Cleaning,3203,Agency Staff,1032,CLEANERS X 3,15/10/2021,229737,533.56,Revenue,Workforce (Boston) Limited,11042,
32UB,Boston Borough Council,Community Testing Centre,3516,Agency Staff,1032,TEMP WORKERS W.E 19.09.21,01/10/2021,229738,472.50,Revenue,Als Managed Services Limited,16620,
32UB,Boston Borough Council,Community Testing Centre,3516,Agency Staff,1032,WORKERS W.E 25.09.21,08/10/2021,229739,2993.14,Revenue,Aligra Personnel Limited,16541,
32UB,Boston Borough Council,Community Testing Centre,3516,Agency Staff,1032,WORKERS W.E 18.09.21,01/10/2021,229740,3077.99,Revenue,Aligra Personnel Limited,16541,
32UB,Boston Borough Council,Central Training & Recruitment,2001,Training Courses,1108,VOUCHER POOL PLANT OPERATOR,01/10/2021,229742,299.00,Revenue,Institute Of Swimming,12482,
32UB,Boston Borough Council,Refuse Collection,3234,Agency Staff,1032,AGENCY W/E 29.08.21,01/10/2021,229749,7801.80,Revenue,Comensura Ltd,9671,
32UB,Boston Borough Council,Grounds Maintenance,4401,Agency Staff,1032,AGENCY W/E 29.08.21,01/10/2021,229749,448.05,Revenue,Comensura Ltd,9671,
32UB,Boston Borough Council,Refuse Collection,3234,Agency Staff,1032,AGENCY W/E 12.09.21,01/10/2021,229750,8830.97,Revenue,Comensura Ltd,9671,
32UB,Boston Borough Council,Grounds Maintenance,4401,Agency Staff,1032,AGENCY W/E 12.09.21,01/10/2021,229750,448.05,Revenue,Comensura Ltd,9671,
32UB,Boston Borough Council,Refuse Collection,3234,Agency Staff,1032,AGENCY W/E 05.09.21,01/10/2021,229751,8327.74,Revenue,Comensura Ltd,9671,
32UB,Boston Borough Council,Grounds Maintenance,4401,Agency Staff,1032,AGENCY W/E 05.09.21,01/10/2021,229751,363.28,Revenue,Comensura Ltd,9671,
32UB,Boston Borough Council,Refuse Collection,3234,Agency Staff,1032,AGENCY W/E 26.09.21,08/10/2021,229754,8248.04,Revenue,Comensura Ltd,9671,
32UB,Boston Borough Council,Grounds Maintenance,4401,Agency Staff,1032,AGENCY W/E 26.09.21,08/10/2021,229754,476.17,Revenue,Comensura Ltd,9671,
32UB,Boston Borough Council,Land Charges,3232,Lcc Search Fees,3984,LOCAL LAND SEARCH FEES AUG 21,01/10/2021,229756,1149.50,Revenue,Lincolnshire County Council,12322,
32UB,Boston Borough Council,Vehicle Holding Account,2206,Chris Sellars Payg,3045,KUBOTA BX2350D FLEET NO. VF10000 REPAIRS ,22/10/2021,229757,499.59,Revenue,Chris Sellars Groundcare Ltd,6627,
32UB,Boston Borough Council,Recycling,3238,Plant Maintenance,2012,CLEARANCE JOB CENTRAL PARK,15/10/2021,229761,680.00,Revenue,Sg Services (Boston) Limited,8668,
32UB,Boston Borough Council,It Investment Programme,6201,Purchases,8005,15 DELL LATITUDE NOTEBOOKS,01/10/2021,229775,13585.65,Capital,Kingsfield Computer Products Limited,16963,
32UB,Boston Borough Council,Building Mtc-Public Buildings,4402,Materials,3006,SUPPLY/FIT NEW PUMP & CONVERSION KIT,22/10/2021,229778,1040.90,Revenue,C.S.S. Pools And Leisure Ltd,12394,
32UB,Boston Borough Council,Vehicle Holding Account,2206,Software Maintenance,3408,ANNUAL SUPPORT & MAINTENCE,22/10/2021,229779,300.00,Revenue,Bartec Auto Id Limited,11092,
32UB,Boston Borough Council,Vehicle Holding Account,2206,Software Maintenance,3408,800321 ANNUAL SUPPORT AND MAINTENANCE -   COLLECTIVE LINK MODULE,22/10/2021,229779,1000.00,Revenue,Bartec Auto Id Limited,11092,
32UB,Boston Borough Council,Vehicle Holding Account,2206,Software Maintenance,3408,800410 ANNUAL SUBSCRIPTION SATELITE NAVIGATION LICENCES 1 AUGUST 2021 TO 31 JULY 2022,22/10/2021,229779,1350.00,Revenue,Bartec Auto Id Limited,11092,
32UB,Boston Borough Council,Vehicle Holding Account,2206,Software Maintenance,3408,800772 ANNUAL SUPPORT AND MAINTENANCE COLLECTIVE SYSTEM HOSTING,22/10/2021,229779,3000.00,Revenue,Bartec Auto Id Limited,11092,
32UB,Boston Borough Council,Vehicle Holding Account,2206,Software Maintenance,3408,800339 ANNUAL SUPPORT AND MAINTENANCE IN-CAB COMPUTER INCLUDING DATA,22/10/2021,229779,3510.00,Revenue,Bartec Auto Id Limited,11092,
32UB,Boston Borough Council,Vehicle Holding Account,2206,Software Maintenance,3408,800327 ANNUAL SUPPORT AND MAINTENANCE COLLECTIVE CORE SOFTWARE,22/10/2021,229779,3900.00,Revenue,Bartec Auto Id Limited,11092,
32UB,Boston Borough Council,Community Safety,3205,P'Ship Pay & Conts To Schemes,3601,BOSTON BOROUGH COUNCIL ANNUAL CONTRIBUTION,08/10/2021,229783,5000.00,Revenue,Lincolnshire County Council,12322,
32UB,Boston Borough Council,Building Mtc-Public Buildings,4402,Materials,3006,GMLC EASYBOX INSTALLATION,15/10/2021,229861,2533.80,Revenue,Glen Farrow Uk Ltd,12204,
32UB,Boston Borough Council,Development Management,3306,Agency Staff,1032,TOWN PLANNING CONSULTANCY - BBC & ELDC,29/10/2021,229870,5472.00,Revenue,Gd Planning,16774,
32UB,Boston Borough Council,Vehicle Holding Account,2206,Sfs Fixed Maintenance,3042,LT21 NDN CONTRACT MAINTENANCE OCT 21,22/10/2021,229872,1504.17,Revenue,Specialist Fleet Services Ltd,16163,
32UB,Boston Borough Council,Vehicle Holding Account,2206,Sfs Fixed Maintenance,3042,GK20 UYN CONTRACT MAINTENANCE OCT 21,22/10/2021,229872,1614.08,Revenue,Specialist Fleet Services Ltd,16163,
32UB,Boston Borough Council,Vehicle Holding Account,2206,Sfs Fixed Maintenance,3042,LS20 XDB CONTRACT MAINTENANCE OCT 21,22/10/2021,229872,1620.83,Revenue,Specialist Fleet Services Ltd,16163,
32UB,Boston Borough Council,Vehicle Holding Account,2206,Sfs Fixed Maintenance,3042,VK70 XZT CONTRACT MAINTENANCE OCT 21,22/10/2021,229872,1829.17,Revenue,Specialist Fleet Services Ltd,16163,
32UB,Boston Borough Council,Vehicle Holding Account,2206,Sfs Fixed Maintenance,3042,VK70 XZU CONTRACT MAINTENANCE OCT 21,22/10/2021,229872,1829.17,Revenue,Specialist Fleet Services Ltd,16163,
32UB,Boston Borough Council,Vehicle Holding Account,2206,Sfs Fixed Maintenance,3042,VK70 XZV CONTRACT MAINTENANCE OCT 21,22/10/2021,229872,1829.17,Revenue,Specialist Fleet Services Ltd,16163,
32UB,Boston Borough Council,Vehicle Holding Account,2206,Sfs Fixed Maintenance,3042,VK70 XZW CONTRACT MAINTENANCE OCT 21,22/10/2021,229872,1829.17,Revenue,Specialist Fleet Services Ltd,16163,
32UB,Boston Borough Council,Vehicle Holding Account,2206,Sfs Fixed Maintenance,3042,VK70 XZX CONTRACT MAINTENANCE OCT 21,22/10/2021,229872,1829.17,Revenue,Specialist Fleet Services Ltd,16163,
32UB,Boston Borough Council,Vehicle Holding Account,2206,Sfs Fixed Maintenance,3042,VK70 XZZ CONTRACT MAINTENANCE OCT 21,22/10/2021,229872,1829.17,Revenue,Specialist Fleet Services Ltd,16163,
32UB,Boston Borough Council,Vehicle Holding Account,2206,Sfs Fixed Maintenance,3042,VX18 KFG CONTRACT MAINTENANCE OCT 21,22/10/2021,229872,1829.17,Revenue,Specialist Fleet Services Ltd,16163,
32UB,Boston Borough Council,Vehicle Holding Account,2206,Sfs Fixed Maintenance,3042,VK70 XZY CONTRACT MAINTENANCE OCT 21,22/10/2021,229872,1829.17,Revenue,Specialist Fleet Services Ltd,16163,
32UB,Boston Borough Council,Vehicle Holding Account,2206,Sfs Fixed Maintenance,3042,H4 BBC CONTRACT MAINTENANCE OCT 21,22/10/2021,229872,1913.58,Revenue,Specialist Fleet Services Ltd,16163,
32UB,Boston Borough Council,Bereavement,2401,Plant Maintenance,2012,27.09.21-28.09.21 SERVICE MES07339,22/10/2021,229876,347.75,Revenue,Matthews Environmental Solutions Limited,15719,
32UB,Boston Borough Council,Bereavement,2401,Plant Maintenance,2012,TO ATTEND SITE AND CARRY OUT A SERVICE,22/10/2021,229876,1147.40,Revenue,Matthews Environmental Solutions Limited,15719,
32UB,Boston Borough Council,It Investment Programme,6201,Purchases,8005,DELL LATITUDE 5520 LAPTOPS,08/10/2021,229885,4108.50,Capital,Vohkus Limited,16678,
32UB,Boston Borough Council,Leisure Pool Services,3434,Resale Pool,3034,POOL EQUIPMENT,08/10/2021,229886,307.38,Revenue,Splash About International,249,
32UB,Boston Borough Council,Leisure Pool Services,3434,Chemicals,3009,CALC HYPO HTH GRAN 25K CNN,15/10/2021,229889,844.22,Revenue,Univar B.V.,12917,
32UB,Boston Borough Council,Registration Of Electors,3109,Books And Publications,3007,SCHOFIELD'S ELECTION LAW PR R60,22/10/2021,229891,288.00,Revenue,Thomson Reuters,10373,
32UB,Boston Borough Council,Dog Collection,3219,Professional Services,3301,STRAY DOG COLLECTION SERVICE,08/10/2021,229893,1120.83,Revenue,Pestinator Uk Ltd,13043,
32UB,Boston Borough Council,Leisure Pool Services,3434,Professional Services,3301,SEPTEMBER 21 - FITNESS CLASSES,08/10/2021,229896,280.00,Revenue,Top Banana Fitness,16459,
32UB,Boston Borough Council,Grants General,3455,Project Costs,3935,SLA 2021/22 Q2 JULY - SEPT 21,15/10/2021,229897,16250.00,Revenue,Citizens Advice Mid Lincolnshire,540,
32UB,Boston Borough Council,Community Safety,3205,P'Ship Pay & Conts To Schemes,3601,SERVICE LEVEL AGREEMENT - 2021/2022,08/10/2021,229898,10247.82,Revenue,Lincolnshire County Council,12322,
32UB,Boston Borough Council,Refuse Collection,3234,Agency Staff,1032,SUPPLY OF TEMPORARY STAFF W/E 03.10.21,15/10/2021,229900,8824.24,Revenue,Comensura Ltd,9671,
32UB,Boston Borough Council,Grounds Maintenance,4401,Agency Staff,1032,SUPPLY OF TEMPORARY STAFF W/E 03.10.21,15/10/2021,229900,476.17,Revenue,Comensura Ltd,9671,
32UB,Boston Borough Council,Bereavement,2401,Medical Assessors Fees,3302,SEPT 21 - MEDICAL REFEREE 70 SIGNINGS,08/10/2021,229901,1295.00,Revenue,Dr Andrew Doddrell,10098,
32UB,Boston Borough Council,Office Cleaning,3203,Agency Staff,1032,CLEANERS X 3,29/10/2021,229903,719.40,Revenue,Workforce (Boston) Limited,11042,
32UB,Boston Borough Council,Economic Development,3423,Project Costs,3935,BSU1530-SERVICE-WORK COMPLETED ON THE PROSPECTUS FOR THE FOOD,22/10/2021,229907,7700.00,Revenue,Collison And Associates Ltd,16230,
32UB,Boston Borough Council,Community Champions: La Fund,1019,Project Costs,3935,PR SUPPORT OCT - DEC 21,22/10/2021,229909,10000.00,Revenue,Tank Pr Ltd,16594,
32UB,Boston Borough Council,Grants General,3455,Voluntary Org Grants,3602,SLA 2021/22 Q3 OCT - DEC 21,15/10/2021,229913,16250.00,Revenue,Citizens Advice Mid Lincolnshire,540,
32UB,Boston Borough Council,Central Training & Recruitment,2001,Superann Other,1008,SEPT 21 - BUSINESS CONTINUITY TRAINING,08/10/2021,229915,298.00,Revenue,Lincolnshire County Council,12322,
32UB,Boston Borough Council,Leisure Pool Services,3434,Machine Rental,2404,DRINKS,08/10/2021,229917,937.79,Revenue,Nvcs Ltd,251,
32UB,Boston Borough Council,Community Testing Centre,3516,Agency Staff,1032,OFFICERS W.E 02.10.21,15/10/2021,229919,2955.94,Revenue,Aligra Personnel Limited,16541,
32UB,Boston Borough Council,Covid 19,3246,Miscellaneous,3905,RENT 24.09.21-30.09.21 12 ROOMS,08/10/2021,229926,2940.00,Revenue,The New England Hotel,15731,
32UB,Boston Borough Council,Covid 19,3246,Miscellaneous,3905,SECURITY 24.09.21-30.09.21,08/10/2021,229927,1176.00,Revenue,The New England Hotel,15731,
32UB,Boston Borough Council,Towns Fund - Pe21,3426,Professional Services,3301,TOWNS FUND SUPPORT UP TO 31ST MARCH 2022,29/10/2021,229929,990.00,Revenue,Rose Regeneration Limited,14694,
32UB,Boston Borough Council,High Street Fund,3247,Publicity,3513,POSTCARDS TO PROMOTE EVENTS IN BOSTON,08/10/2021,229934,2499.00,Revenue,A C Townshend,17021,
32UB,Boston Borough Council,Mayfair,3425,Event Costs,3925,SAG SERVICES 28.07.21,08/10/2021,229935,1125.00,Revenue,Magna Vitae Leisure Trust,13539,
32UB,Boston Borough Council,Leisure Pool Services,3434,Water Rates,2050,ROWLEY ROAD 27.08.21-26.09.21,08/10/2021,229944,847.43,Revenue,Wave,13339,
32UB,Boston Borough Council,Covid 19,3246,Subscriptions,3600,05.09.21-04.10.21 OFFICE SUBSCRIPTION,22/10/2021,229951,1013.53,Revenue,Phoenix Software Ltd,644,
32UB,Boston Borough Council,It Investment Programme,6201,Purchases,8005,BACKUP SERVER LICENCE & INITIAL CONFIG,08/10/2021,229952,2955.00,Capital,Specialist Computer Centres Plc,471,
32UB,Boston Borough Council,Housing Advice & Homelessness,3241,Project Costs,3935,REMAINING BALANCE ACCOMMODATION,08/10/2021,229958,900.00,Revenue,The Lord Grey Hotel,14612,
32UB,Boston Borough Council,Bed & Breakfast,3222,Bed And Breakfast Accom Fees,3306,ACCOMMODATION,08/10/2021,229959,3190.00,Revenue,Beeston Lodge Hotel,7822,
32UB,Boston Borough Council,Covid 19,3246,Miscellaneous,3905,SECURITY FROM 01.10.21-07.10.21,08/10/2021,229960,1176.00,Revenue,The New England Hotel,15731,
32UB,Boston Borough Council,Covid 19,3246,Miscellaneous,3905,RENT FOR 01.10.21-07.10.21,08/10/2021,229961,2940.00,Revenue,The New England Hotel,15731,
32UB,Boston Borough Council,Leisure Pool Services,3434,Rental Of Phone System,3418,FIBRESTREAM RENTAL NOVEMBER 21,15/10/2021,229964,368.00,Revenue,Multidata Ltd,12625,
32UB,Boston Borough Council,Photocopiers,2503,Plant Maintenance,2012,QTRLY RENTAL 04.09.21 - 03.12.21,08/10/2021,229965,1407.41,Revenue,Capita Software Services Limited,121,
32UB,Boston Borough Council,Grants General,3455,Project Costs,3935,BOSTON SKATEPARK FINAL 2.5%,15/10/2021,229966,5786.25,Revenue,Maverick Industries Ltd,14709,
32UB,Boston Borough Council,Finance,1502,Professional Services,3301,BBC CONTRACT PRICE - OCT 21,15/10/2021,229967,238097.42,Revenue,Public Sector Partnership Services Ltd,16086,
32UB,Boston Borough Council,Building Mtc-Public Buildings,4402,Materials,3006,07.06.21 - MUNICIPAL BUILDINGS HEATER,22/10/2021,230025,418.75,Revenue,Princebuild Limited,2152,
32UB,Boston Borough Council,Building Mtc-Public Buildings,4402,Materials,3006,16.06.21 - GMLC RECEPTION & GYM DOOR,29/10/2021,230033,1188.64,Revenue,Princebuild Limited,2152,
32UB,Boston Borough Council,Building Mtc-Public Buildings,4402,Materials,3006,18.06.21 - CENTRAL PARK TILES,29/10/2021,230035,250.08,Revenue,Princebuild Limited,2152,
32UB,Boston Borough Council,Building Mtc-Public Buildings,4402,Materials,3006,07.06.21 - CREMATORIUM HEATER,29/10/2021,230038,455.34,Revenue,Princebuild Limited,2152,
32UB,Boston Borough Council,Building Mtc-Public Buildings,4402,Materials,3006,01.10.21-30.09.21 MB DISPOSALS,15/10/2021,230048,336.60,Revenue,Phs Group Plc,741,
32UB,Boston Borough Council,Bereavement,2401,Memorials Purchases,3028,"CRE1737-SERVICE-OCT TO DEC VOLUME, INSCRIPTIONS IN BOOK OF RE",22/10/2021,230054,570.84,Revenue,Rbs Invoice Finance Ltd,45,
32UB,Boston Borough Council,Towns Fund - Pe21,3426,Professional Services,3301,2020 STEAM DATA FOR BOSTON,29/10/2021,230056,1750.00,Revenue,Global Tourism Solutions (Uk) Ltd,16295,
32UB,Boston Borough Council,Health Activity,3415,Active Sports Partnership,3927,01.04.21-31.03.22 ANNUAL DISTRICT CONTRIBUTION,15/10/2021,230061,6000.00,Revenue,Lincolnshire Sports Partnership Limited,3621,
32UB,Boston Borough Council,Finance,1502,Procurement S/S Agreement,3800,PROCUREMENT SERVICES JULY - SEP 21,15/10/2021,230064,4901.83,Revenue,Borough Council Of Kings Lynn & West Norfolk,1011,
32UB,Boston Borough Council,Cctv,3206,Bt Optical Line Rental,3420,02.09.21-01.12.21 ETHERNET RENTAL,15/10/2021,230069,10567.37,Revenue,Bt Redcare,2020,
32UB,Boston Borough Council,Commercial Waste,3237,Disposal Costs,4616,DISPOSAL CHARGES APRIL 21 - JUNE 21,15/10/2021,230077,30263.84,Revenue,Lincolnshire County Council,12322,
32UB,Boston Borough Council,Street Cleansing Service,3235,Specialist Services,4602,COLLECTION OF SHARPS WASTE 1100LTR BIN 10/21,22/10/2021,230078,500.00,Revenue,Healthguard Ltd,3406,
32UB,Boston Borough Council,Elections,3103,Books And Publications,3007,PARKER LAW CONDUCT ELECTION ISSUE 70,22/10/2021,230086,475.00,Revenue,Lexisnexis Butterworths,680,
32UB,Boston Borough Council,Registration Of Electors,3109,Postages,3405,07.08.21-04.09.21 RESPONSE PLUS,15/10/2021,230087,637.12,Revenue,Royal Mail,86,
32UB,Boston Borough Council,Elections,3103,Postages,3405,15.08.21 - 09.09.21 POST CHARGES,15/10/2021,230088,572.67,Revenue,Royal Mail,86,
32UB,Boston Borough Council,Elections,3103,Postages,3405,09.06.21 - 19.08.21 POST CHARGES,15/10/2021,230089,478.48,Revenue,Royal Mail,86,
32UB,Boston Borough Council,Elections,3103,Postages,3405,05.09.21 - 23.09.21 POST CHARGES,22/10/2021,230091,524.01,Revenue,Royal Mail,86,
32UB,Boston Borough Council,"Arts, Heritage & Tourism",3407,Exhibitions And Displays,3016,28.09.21 & 29.09.21 BUFFET LUNCH,29/10/2021,230095,552.90,Revenue,Sjp Catering & Vending,16999,
32UB,Boston Borough Council,Refuse Collection,3234,Specialist Services,4602,BOSTON BOROUGH COUNCIL WASTE ROUTE OPTIMISATION CONSULTANCY,12/10/2021,230099,40986.00,Revenue,Webaspx Limited,11520,
32UB,Boston Borough Council,Leisure Pool Services,3434,Hygiene Service,2081,12.11.21-11.02.22 GMLC SERVICES,29/10/2021,230106,547.66,Revenue,Phs Group Plc,741,
32UB,Boston Borough Council,Bereavement,2401,Other Contributions,0205,INSTALLATION GARDEN SCULPTURES,15/10/2021,230115,1800.00,Revenue,Juniper House Art & Garden Design,13288,
32UB,Boston Borough Council,Refuse Collection,3234,Agency Staff,1032,AGENCY W/E 10.10.21,22/10/2021,230116,6174.79,Revenue,Comensura Ltd,9671,
32UB,Boston Borough Council,Grounds Maintenance,4401,Agency Staff,1032,AGENCY W/E 10.10.21,22/10/2021,230116,476.17,Revenue,Comensura Ltd,9671,
32UB,Boston Borough Council,Parking,3449,Cash Collection & Counting,4621,CARPARKING CASH COLLECTION,22/10/2021,230125,1174.30,Revenue,Kings Armoured Security Services Ltd,10472,
32UB,Boston Borough Council,Office Cleaning,3203,Agency Staff,1032,CLEANERS X 3,22/10/2021,230128,863.28,Revenue,Workforce (Boston) Limited,11042,
32UB,Boston Borough Council,Vehicle Holding Account,2206,Tyres,2208,TYRE MAINTENANCE CONTRACT OCTOBER 2021,29/10/2021,230132,2674.71,Revenue,B A Bush & Son Ltd,12196,
32UB,Boston Borough Council,Community Testing Centre,3516,Overtime Payments,1022,OFFICERS W.E 09.10.21,22/10/2021,230134,3458.79,Revenue,Aligra Personnel Limited,16541,
32UB,Boston Borough Council,Computer Costs,1503,Professional Services,3301,CCN - IT SUPPORT OUT OF HOURS BBC,15/10/2021,230141,5528.00,Revenue,Public Sector Partnership Services Ltd,16086,
32UB,Boston Borough Council,It Investment Programme,6201,Purchases,8005,DELL LATITUDE 5520 AS PER QUOTE 110887,22/10/2021,230146,4200.40,Capital,Kingsfield Computer Products Limited,16963,
32UB,Boston Borough Council,Refuse Collection,3234,Agency Staff,1032,SUPPLY OF TEMPORARY STAFF W/E 17.10.21,29/10/2021,230221,5534.19,Revenue,Comensura Ltd,9671,
32UB,Boston Borough Council,Grounds Maintenance,4401,Agency Staff,1032,SUPPLY OF TEMPORARY STAFF W/E 17.10.21,29/10/2021,230221,497.38,Revenue,Comensura Ltd,9671,
32UB,Boston Borough Council,Photocopiers,2503,Equipment Purchase,3001,RESITE CHARGE FOR RELOCATION,22/10/2021,230246,270.00,Revenue,Capita Software Services Limited,121,
32UB,Boston Borough Council,Development Management,3306,Consultant Architect,4607,01.10.21-31.03.21 CONSERVATION ADVICE,29/10/2021,230253,8750.00,Revenue,Heritage Trust Of Lincolnshire Ltd,660,
32UB,Boston Borough Council,Credit Control Unit,1013,Transaction Costs,4701,PO AND PP TRANSACTIONS SEPT 21,22/10/2021,230265,919.65,Revenue,Capita Software Services Limited,121,
32UB,Boston Borough Council,Credit Control Unit,1013,Transaction Costs,4701,PO AND PP TRANSACTIONS SEPT 21,22/10/2021,230266,588.45,Revenue,Capita Software Services Limited,121,
32UB,Boston Borough Council,Building Mtc-Public Buildings,4402,Materials,3006,GMLC WORKS AND LABOUR,22/10/2021,230269,2353.00,Revenue,Gilgen Door Systems Limited,380,
32UB,Boston Borough Council,Development Management,3306,Agency Staff,1032,DM SERVICES SEPT 21,29/10/2021,230333,7425.00,Revenue,Capita Property & Infrastructure Ltd,13782,
32UB,Boston Borough Council,Leisure Pool Services,3434,Miscellaneous,3905,PANTO TICKETS & ICE CREAM,29/10/2021,230343,396.00,Revenue,Blackfriars Arts Centre Ltd,153,
32UB,Boston Borough Council,Refuse Collection,3234,Agency Staff,1032,SUPPLY OF TEMPORARY STAFF W/E 24.10.21,29/10/2021,230355,5654.74,Revenue,Comensura Ltd,9671,
32UB,Boston Borough Council,Grounds Maintenance,4401,Agency Staff,1032,SUPPLY OF TEMPORARY STAFF W/E 24.10.21,29/10/2021,230355,931.21,Revenue,Comensura Ltd,9671,
32UB,Boston Borough Council,Bereavement,2401,Gas,2022,GAS - CREMATORIUM - 31.07.21-31.08.21,01/10/2021,71989,1270.90,Revenue,ESPO,,
32UB,Boston Borough Council,Municipal Buildings,2404,Gas,2022,GAS - MUNICIPAL BUILDINGS - 31.07.21-31.08.21,01/10/2021,71989,251.57,Revenue,ESPO,,
32UB,Boston Borough Council,Leisure Pool Services,3434,Gas,2022,GAS - GMLC - 31.07.21-31.08.21,01/10/2021,71989,2478.46,Revenue,ESPO,,
32UB,Boston Borough Council,Internal Communications,2504,Rental Of Phone System,3418,BT DD - RECURRING CHARGES SEPT 2021 - VP 79824270,05/10/2021,72004,301.10,Revenue,BT plc,,
32UB,Boston Borough Council,Housing Advice & Homelessness,3241,Water Rates,2050,HOMELESS HOSTEL 1 LEIC SQ - 01.04.21-31.03.22 2ND PAYMENT,01/10/2021,72088,286.18,Revenue,Anglian Water,,
32UB,Boston Borough Council,Housing Advice & Homelessness,3241,Water Rates,2050,HOMELESS HOSTEL 2 LEIC SQ - 01.04.21-31.03.22 2ND PAYMENT,01/10/2021,72088,286.18,Revenue,Anglian Water,,
32UB,Boston Borough Council,Housing Advice & Homelessness,3241,Water Rates,2050,HOMESLESS HOSTEL 14 STATION ST - 01.04.21-31.03.22 2ND PAYMENT,01/10/2021,72088,313.26,Revenue,Anglian Water,,
32UB,Boston Borough Council,Leisure Pool Services,3434,Provisions / Purchases,3008,BOOKER DD RE GMLC - INVOICE 3543883,15/10/2021,72116,883.79,Revenue,Bookers,,
32UB,Boston Borough Council,Council Tax Summary Account,5000,Ct Requirement Lcc,7801,LINCS COUNTY COUNCIL ADDITIONAL PRECEPT,15/10/2021,72120,100522.60,Precept,Lincolnshire County Council,,
32UB,Boston Borough Council,Council Tax Summary Account,5000,Ct Requirement Lcc,7801,LINCS COUNTY COUNCIL PRECEPT,15/10/2021,72120,2696234.93,Precept,Lincolnshire County Council,,
32UB,Boston Borough Council,Council Tax Summary Account,5000,Ct Requirement Lpa,7802,LINCS POLICE PRECEPT,15/10/2021,72120,526213.99,Precept,Lincs Police,,
32UB,Boston Borough Council,Nndr Control Account,5103,Lincs County Council Share,7266,LINCS COUNTY COUNCIL NNDR SHARE,15/10/2021,72120,112975.40,Precept,Lincolnshire County Council,,
32UB,Boston Borough Council,Bereavement,2401,Electricity,2021,ROBIN HOODS WALK CREM - 01.09.21-30.09.21,15/10/2021,72123,856.02,Revenue,Total Gas & Power,,
32UB,Boston Borough Council,Municipal Buildings,2404,Electricity,2021,MUNICIPAL BUILDINGS ACC 3004800128 - 01.09.21-30.09.21,15/10/2021,72123,754.48,Revenue,Total Gas & Power,,
32UB,Boston Borough Council,Municipal Buildings,2404,Electricity,2021,MUNICIPAL BUILDINGS ACC 3005069232 - 01.09.21-30.09.21,15/10/2021,72123,2500.41,Revenue,Total Gas & Power,,
32UB,Boston Borough Council,Depot,2405,Electricity,2021,ST JOHNS RD _ 01.09.21-30.09.21,15/10/2021,72123,290.55,Revenue,Total Gas & Power,,
32UB,Boston Borough Council,Redstone Caravan Site,3225,Electricity,2021,TRAVELLER'S SITE REDSTONE - 01.09.21-30.09.21,15/10/2021,72123,2534.63,Revenue,Total Gas & Power,,
32UB,Boston Borough Council,Leisure Pool Services,3434,Electricity,2021,GMLC -01.09.21-30.09.21,15/10/2021,72123,4588.33,Revenue,Total Gas & Power,,
32UB,Boston Borough Council,Footway Lighting & Mtc,3447,Electricity,2021,FOOTWAY LIGHTING - 01.09.21-30.09.21,15/10/2021,72123,2219.88,Revenue,Total Gas & Power,,
32UB,Boston Borough Council,Parking,3449,Electricity,2021,CAR PARK LIGHTING TICKET MACHINES - 01.09.21-30.09.21,15/10/2021,72123,506.83,Revenue,Total Gas & Power,,
32UB,Boston Borough Council,Princess Royal Sports Arena,3452,Electricity,2021,PRSA - 01.09.21-30.09.21,15/10/2021,72123,6462.56,Revenue,Total Gas & Power,,
32UB,Boston Borough Council,Hackney Carriage Licences,3233,Hackney Carriges Expenses,3521,LAND CHARGES - 9 CHECKS ,18/10/2021,72126,360.00,Revenue,DBS,,
32UB,Boston Borough Council,Nndr Control Account,5103,Central Government Share,7264,BRR CENTRAL SHARE 2021/22,19/10/2021,72148,820288.00,Precept,DCLG,,
32UB,Boston Borough Council,Corporate & Democratic Core,3102,Bank Charges,3510,BOTTOMLINE MONTHLY AGREEMENT FOR BACS,20/10/2021,72158,671.00,Revenue,Bottlomline Technologies,,
32UB,Boston Borough Council,Corporate & Democratic Core,3102,Bank Charges,3510,ACADEMY MANAGED SERVICES CAPITA DD,22/10/2021,72173,4247.89,Revenue,Capita Software Services Limited,,
32UB,Boston Borough Council,Vehicle Holding Account,2206,Fuel Transport,2201,FUEL TO 3/10,27/10/2021,72206,342.26,Revenue,Fuelcard Services,,
32UB,Boston Borough Council,Vehicle Holding Account,2206,Fuel Transport,2201,FUEL TO 10/10 VU62 HVH,28/10/2021,72208,446.21,Revenue,Fuelcard Services,,
32UB,Boston Borough Council,Vehicle Holding Account,2206,Fuel Transport,2201,FUEL TO 10/10,28/10/2021,72208,4419.38,Revenue,Fuelcard Services,,
32UB,Boston Borough Council,Vehicle Holding Account,2206,Fuel Transport,2201,FUEL TO 10/10,28/10/2021,72210,532.84,Revenue,Fuelcard Services,,
32UB,Boston Borough Council,Internal Communications,2504,Rental Of Phone System,3418,FOEHN DD'S,28/10/2021,72260,2671.19,Revenue,Foehn,,
32UB,Boston Borough Council,Legal Services,1402,Subscriptions,3600,REFERENCE DI055369M,29/10/2021,72262,795.83,Revenue,EX,,
32UB,Boston Borough Council,Bereavement,2401,Gas,2022,GAS CREM - 31.08.21-30.09.21,29/10/2021,72276,1290.75,Revenue,ESPO,,
32UB,Boston Borough Council,Municipal Buildings,2404,Gas,2022,GAS MUNICIPAL BUILDINGS - 31.08.21-30.09.21,29/10/2021,72276,307.54,Revenue,ESPO,,
32UB,Boston Borough Council,"Arts, Heritage & Tourism",3407,Gas,2022,GAS GUILDHALL - 31.08.21-30.09.21,29/10/2021,72276,269.28,Revenue,ESPO,,
32UB,Boston Borough Council,Leisure Pool Services,3434,Gas,2022,GAS GMLC - 31.08.21-30.09.21,29/10/2021,72276,1841.22,Revenue,ESPO,,
32UB,Boston Borough Council,Nndr,9006,Business Rates Retention,4006,LINCS CC DD RE B RATES TARIFFS 2021/22,19/10/2021,72291,411257.00,Precept,Lincolnshire County Council,,
32UB,Boston Borough Council,Vehicle Holding Account,2206,Fuel Transport,2201,FUEL TO 17/10,31/10/2021,72501,3917.83,Revenue,Fuelcard Services,,
32UB,Boston Borough Council,Vehicle Holding Account,2206,Fuel Transport,2201,FUEL TO 17/10,31/10/2021,72502,510.07,Revenue,Fuelcard Services,,
32UB,Boston Borough Council,Central Training & Recruitment,2001,Training Courses,1108,TRAINING,18/10/2021,72517,389.00,Revenue,EX,,
32UB,Boston Borough Council,Vehicle Holding Account,2206,Materials,3006,YP65 DLV TAX,18/10/2021,72517,277.50,Revenue,DVLA,,
32UB,Boston Borough Council,Vehicle Holding Account,2206,Materials,3006,YR13 LKJ TAX,18/10/2021,72517,277.50,Revenue,DVLA,,
32UB,Boston Borough Council,Refuse Collection,3234,Clothing,3150,GLOVES,18/10/2021,72517,284.00,Revenue,EX,,
32UB,Boston Borough Council,Refuse Collection,3234,Clothing,3150,PPE CLOTHING,18/10/2021,72517,682.08,Revenue,EX,,
32UB,Boston Borough Council,Refuse Collection,3234,Clothing,3150,"PPE CLOTHING INCLUDING BOOTS, TROUSERS, BOOTS, SHIRTS.",18/10/2021,72517,676.67,Revenue,EX,,
32UB,Boston Borough Council,Refuse Collection,3234,Printing And Stationery,3201,TONER CARTRIDGE,18/10/2021,72517,579.48,Revenue,EX,,
32UB,Boston Borough Council,Leisure Pool Services,3434,Equipment Purchase,3001,WOMENS SELF DEFENCE (ACTIVE LINCOLNSHIRE),18/10/2021,72517,359.80,Revenue,EX,,
32UB,Boston Borough Council,Leisure Pool Services,3434,Advertising,3203,MARKETING FOR THE DOCTORS SURGERY,18/10/2021,72517,833.33,Revenue,EX,,
32UB,Boston Borough Council,Leisure Pool Services,3434,Advertising,3203,MARKETING FOR THE DOCTORS SURGERY,18/10/2021,72517,761.67,Revenue,EX,,
32UB,Boston Borough Council,Community Testing Centre,3516,Equipment Purchase,3001,FUEL,18/10/2021,72517,262.92,Revenue,EX,,
32UB,Boston Borough Council,Community Testing Centre,3516,Equipment Purchase,3001,VAN HIRE,18/10/2021,72517,466.67,Revenue,EX,,
32UB,Boston Borough Council,It Investment Programme,6201,Purchases,8005,5 MONITORS & 5 KEYBOARDS,18/10/2021,72517,1015.03,Capital,EX,,
